bitfinex-derivatives/quotes_SOLF0:USTF0_20250509
["timestamp","ask_amount","ask_price","bid_price","bid_amount"]
[1746789508854,33.28,174.2,174.1,2.14933684]
[1746789509151,33.28,174.2,174.08,482.82808888]
[1746789509349,33.28,174.2,174.09,2.14906602]
[1746789509551,33.28,174.2,174.1,2.14906602]
[1746789509747,33.28,174.2,174.09,2.14946528]
[1746789509951,33.28,174.2,174.1,2.14905552]
[1746789510149,454.34,174.26,174.08,26.62458888]
[1746789510352,17.37086691,174.23,174.06,1.8896]
[1746789510647,1.00981504,174.22,174.07,2.15215196]
[1746789510853,5.7429,174.16,174.1,5.7443]
[1746789511054,33.2,174.15,174.07,2.15216927]
[1746789511256,38.943,174.15,174.1,5.7445]
[1746789511455,33.2,174.15,174.06,1.8896]
[1746789512257,33.2,174.15,174.03,2.15222465]
[1746789512454,33.2,174.15,174.04,2.15222465]
[1746789512658,33.12,174.17,174.06,17.37086691]
[1746789512953,33.12,174.17,174.15,5.743]
[1746789513153,33.12,174.17,174.08,2.15160803]
[1746789513451,33.12,174.17,174.09,2.15160803]
[1746789513651,454.34,174.26,174.08,2.14911637]
[1746789513857,33.08,174.25,174.09,2.14911637]
[1746789514053,5.7404,174.23,174.18,5.742]
[1746789514255,33.1,174.24,174.07,33.12]
[1746789514460,33.1,174.24,174.08,2.14978994]
[1746789514649,5.7409,174.22,174.09,2.14978994]
[1746789514852,33.1,174.24,174.1,2.14978994]
[1746789515154,454.34,174.26,174.11,3.8458]
[1746789515357,454.34,174.26,174.12,2.14978994]
[1746789515358,33.18,174.25,174.12,2.14978994]
[1746789515547,33.2,174.24,174.12,2.14978994]
[1746789515745,33.2,174.24,174.2,5.7411]
[1746789515945,33.22,174.23,174.12,2.14978994]
[1746789516144,33.22,174.23,174.12,2.15046342]
[1746789516854,33.22,174.23,174.11,7.81106342]
[1746789517958,454.34,174.26,174.12,33.14]
[1746789518156,454.34,174.26,174.14,17.37086691]
[1746789518157,33.14,174.26,174.14,17.37086691]
[1746789518455,33.14,174.3,174.15,2.15342164]
[1746789518645,33.14,174.3,174.16,2.15342164]
[1746789518847,33.14,174.3,174.17,2.15342164]
[1746789519156,33.14,174.3,174.15,2.15342164]
[1746789519353,33.14,174.3,174.16,2.15342164]
[1746789519655,33.14,174.3,174.26,5.7393]
[1746789519854,33.14,174.3,174.18,50.45086691]
[1746789520156,33.14,174.3,174.19,1.9357]
[1746789520657,454.66,174.33,174.19,4.08414543]
[1746789520956,33.04,174.32,174.2,3.6084]
[1746789523262,33.04,174.32,174.2,20.97926691]
[1746789523465,33.04,174.32,174.21,2.14618676]
[1746789523667,487.74,174.33,174.2,20.97926691]
[1746789523962,454.66,174.33,174.2,20.97926691]
[1746789524164,460.3973,174.33,174.29,5.7383]
[1746789524467,33.08,174.32,174.21,2.14650355]
[1746789524964,33.08,174.32,174.21,2.14614276]
[1746789525153,33.1,174.33,174.21,2.14614276]
[1746789525362,33.1,174.35,174.21,2.14614276]
[1746789525560,38.8364,174.35,174.31,5.7374]
[1746789525865,38.8364,174.35,174.24,50.43086691]
[1746789525866,33.1,174.35,174.24,50.43086691]
[1746789526254,454.64,174.41,174.25,2.14694172]
[1746789526567,33.08,174.4,174.26,11.4786]
[1746789526767,38.8148,174.4,174.27,4.00491682]
[1746789527159,33.08,174.4,174.28,17.37086691]
[1746789527359,33.08,174.4,174.29,36.6483]
[1746789528668,33.08,174.4,174.38,5.7352]
[1746789528967,33.08,174.4,174.3,2.14353311]
[1746789529165,17.37086691,174.47,174.3,19.51440002]
[1746789529370,32.98,174.43,174.3,17.37086691]
[1746789529557,32.96,174.43,174.3,17.37086691]
[1746789529758,454.5,174.49,174.34,17.37086691]
[1746789529961,32.92,174.48,174.35,32.92]
[1746789530162,454.5,174.49,174.35,32.92]
[1746789530359,454.5,174.49,174.38,17.37086691]
[1746789530759,454.5,174.57,174.39,3.6532]
[1746789531066,32.92,174.53,174.4,32.92]
[1746789531268,69.65070649,174.52,174.48,5.7319]
[1746789531470,63.91960649,174.52,174.48,5.7319]
[1746789532069,69.65050649,174.52,174.48,5.7319]
[1746789532269,32.92,174.53,174.4,32.92]
[1746789532465,32.88,174.54,174.4,32.92]
[1746789532663,454.5,174.57,174.53,5.7302]
[1746789532868,487.38,174.57,174.45,32.88]
[1746789533168,454.5,174.57,174.46,17.37086691]
[1746789533368,32.88,174.58,174.46,17.37086691]
[1746789533369,32.88,174.58,174.46,19.28346691]
[1746789533669,5.7292,174.57,174.46,19.28346691]
[1746789533965,471.75086691,174.65,174.46,19.28346691]
[1746789534370,33.8473027,174.64,174.54,5.7301]
[1746789534559,5.7286,174.59,174.54,5.7301]
[1746789534870,32.8,174.61,174.57,5.7291]
[1746789535172,5.7279,174.61,174.51,3.6981]
[1746789535368,454.38,174.65,174.51,3.6981]
[1746789535573,487.14,174.65,174.51,3.6981]
[1746789535770,454.38,174.65,174.51,3.6981]
[1746789535969,454.38,174.65,174.59,5.7284]
[1746789536272,5.7271,174.64,174.55,32.72]
[1746789536470,454.38,174.65,174.51,3.6981]
[1746789536671,471.75086691,174.65,174.47,17.37086691]
[1746789536870,1.00728344,174.64,174.47,17.37086691]
[1746789537564,1.00728344,174.64,174.56,5.7292]
[1746789537869,454.38,174.65,174.51,17.37086691]
[1746789538071,454.38,174.65,174.51,50.03086691]
[1746789538467,32.74,174.66,174.55,17.37086691]
[1746789538870,5.7259,174.68,174.56,32.74]
[1746789539069,32.72,174.69,174.56,36.3717]
[1746789539276,32.72,174.69,174.64,5.7266]
[1746789541374,32.7,174.8,174.63,17.37086691]
[1746789541572,33.70655172,174.8,174.64,34.6322]
[1746789541772,33.70655172,174.8,174.67,17.37086691]
[1746789541974,1.00655172,174.8,174.67,17.37086691]
[1746789542273,8.207e-05,174.88,174.71,17.37086691]
[1746789542469,8.207e-05,174.88,174.72,32.72]
[1746789542671,342.90241348,174.99,174.72,32.72]
[1746789542672,331.47141348,174.99,174.85,17.22924325]
[1746789542876,332.61433593,174.99,174.86,3.7458]
[1746789543076,1.14292245,174.99,174.92,5.7177]
[1746789543467,1.14292245,174.99,174.86,3.7458]
[1746789543668,32.8,175.04,174.86,3.7458]
[1746789543980,17.22924325,175.03,174.86,1.8136]
[1746789544277,33.12,174.99,174.84,17.22924325]
[1746789544776,33.12,174.99,174.84,62.0]
[1746789545278,33.12,174.99,174.88,5.7187]
[1746789545480,33.12,174.99,174.84,62.0]
[1746789545977,33.12,174.99,174.83,33.12]
[1746789546172,50.33715349,174.99,174.81,3.7177]
[1746789547082,50.33715349,174.99,174.79,33.52]
[1746789547278,5.7181,174.91,174.76,17.21715349]
[1746789547477,33.62,174.9,174.77,33.62]
[1746789548982,33.62,174.9,174.78,17.21715349]
[1746789549882,453.36,174.96,174.78,17.21715349]
[1746789550084,33.72,174.95,174.85,5.72]
[1746789550382,33.72,174.95,174.79,1.8323]
[1746789550583,5.719,174.88,174.81,5.7213]
[1746789550783,33.72,174.9,174.79,1.8323]
[1746789551079,453.36,174.96,174.79,1.8323]
[1746789551284,33.68,174.95,174.79,1.8323]
[1746789552183,33.68,174.95,174.79,19.04945349]
[1746789552774,5.7175,174.93,174.87,5.7192]
[1746789553077,487.26,174.96,174.83,17.21715349]
[1746789553388,487.26,174.96,174.83,51.09715349]
[1746789553579,5.7177,174.92,174.87,5.7193]
[1746789553780,487.26,174.96,174.83,33.88]
[1746789553980,5.7188,174.89,174.83,39.6006]
[1746789554182,34.04,174.91,173.46,9064.08]
[1746789554389,36.04,174.95,174.74,39.8942]
[1746789554581,38.12,174.94,174.74,39.8942]
[1746789554778,38.12,174.94,174.76,17.21715349]
[1746789555176,38.12,174.94,174.8,17.21715349]
[1746789555385,38.12,174.94,174.8,56.05715349]
[1746789555585,5.718,174.92,174.8,56.05715349]
[1746789555787,38.84,174.94,174.8,56.05715349]
[1746789556483,38.84,174.94,174.8,17.21715349]
[1746789556885,453.36,174.96,174.84,17.21715349]
[1746789557087,38.96,174.97,174.84,17.21715349]
[1746789557486,38.96,174.97,174.79,38.82]
[1746789557693,5.7177,174.92,174.8,17.21715349]
[1746789557989,38.96,174.97,174.8,17.21715349]
[1746789558183,5.7174,174.93,174.8,17.21715349]
[1746789558781,5.7174,174.93,174.87,5.719]
[1746789559086,5.7178,174.92,174.87,5.719]
[1746789559285,38.96,174.97,174.86,5.7196]
[1746789559487,38.96,174.97,174.8,17.21715349]
[1746789559681,5.7174,174.93,174.8,17.21715349]
[1746789559876,38.96,174.97,174.8,17.21715349]
[1746789560089,5.7168,174.95,174.79,38.82]
[1746789560287,38.88,174.96,174.83,17.21715349]
[1746789560586,5.7167,174.95,174.83,17.21715349]
[1746789561090,5.718,174.91,174.82,17.21715349]
[1746789561391,5.718,174.91,174.86,5.7194]
[1746789561583,5.7189,174.89,174.79,38.82]
[1746789561790,5.7189,174.89,174.78,17.21715349]
[1746789562082,39.1,174.9,174.85,5.7199]
[1746789562289,44.8186,174.9,174.85,5.7199]
[1746789562487,39.1,174.9,174.84,5.7203]
[1746789562887,5.7187,174.89,174.84,5.7203]
[1746789563182,39.1,174.9,174.85,5.7199]
[1746789563486,44.8184,174.9,174.85,5.7199]
[1746789563687,39.1,174.9,174.78,17.21715349]
[1746789563884,39.1,174.9,174.74,21.07135349]
[1746789564185,39.1,174.9,174.79,5.7218]
[1746789564487,5.7194,174.87,174.74,1.9128]
[1746789564691,39.1,174.9,174.79,5.7218]
[1746789564884,39.1,174.9,174.74,1.9128]
[1746789565587,5.7193,174.88,174.74,19.12995349]
[1746789565984,5.7193,174.88,174.83,5.7204]
[1746789566287,453.02,174.93,174.78,17.21715349]
[1746789566487,453.02,174.93,174.78,56.17715349]
[1746789566790,453.02,174.93,174.76,38.92]
[1746789566989,453.02,174.93,174.83,5.7204]
[1746789567292,5.7192,174.88,174.83,5.7204]
[1746789567492,38.94,174.88,174.82,5.7209]
[1746789567692,38.94,174.88,174.76,38.92]
[1746789568191,38.94,174.88,174.74,19.12995349]
[1746789568390,38.94,174.88,174.78,17.21715349]
[1746789568790,497.6174,174.93,174.89,5.7186]
[1746789568991,491.9,174.93,174.78,17.21715349]
[1746789569488,497.6174,174.93,174.88,5.7187]
[1746789569791,491.9,174.93,174.78,17.21715349]
[1746789570093,38.86,174.92,174.78,17.21715349]
[1746789570293,38.86,174.92,174.76,11.4458]
[1746789570585,11.417,175.21,174.9,17.22270001]
[1746789570791,11.417,175.21,174.97,17.22270001]
[1746789570792,17.22270001,175.19,174.97,17.22270001]
[1746789570984,1.14168284,175.18,174.97,17.22270001]
[1746789571690,5.7114,175.12,175.05,5.7132]
[1746789571887,38.82,175.11,175.05,5.7132]
[1746789572091,38.82,175.11,174.97,17.22270001]
[1746789572290,44.5316,175.11,174.97,17.22270001]
[1746789572491,38.82,175.11,174.97,17.22270001]
[1746789572796,38.82,175.11,175.05,5.7132]
[1746789573092,453.02,175.15,174.97,17.22270001]
[1746789573296,5.7114,175.12,174.97,17.22270001]
[1746789573793,5.7114,175.12,175.05,5.7134]
[1746789574189,5.7115,175.11,175.05,5.7134]
[1746789574392,38.72,175.14,174.97,17.22270001]
[1746789574792,5.712,175.1,174.97,17.22270001]
[1746789574992,38.6,175.09,175.03,5.714]
[1746789575395,44.3122,175.09,175.03,5.714]
[1746789575694,38.6,175.09,175.04,5.7137]
[1746789576091,38.6,175.09,174.96,38.78]
[1746789576391,470.24270001,175.15,174.96,38.78]
[1746789576589,453.02,175.15,174.98,17.22270001]
[1746789577186,453.02,175.15,175.07,5.7127]
[1746789577387,453.02,175.15,174.96,38.78]
[1746789577388,453.02,175.15,175.02,55.92324406]
[1746789577588,452.82,175.25,175.09,17.16973029]
[1746789577789,28.57923029,175.32,175.15,5.71]
[1746789578088,11.4095,175.32,175.16,5.5763]
[1746789578393,28.57923029,175.32,175.16,5.5763]
[1746789578692,38.9,175.31,175.16,5.5763]
[1746789578896,17.16973029,175.28,175.05,17.16973029]
[1746789579086,17.16973029,175.24,175.06,5.5784]
[1746789579287,17.18646634,175.18,174.91,38.86]
[1746789579490,38.86,175.17,175.02,17.17830455]
[1746789579686,38.86,175.16,175.03,3.6377]
[1746789579892,452.82,175.2,175.03,3.6377]
[1746789580186,38.9,175.19,175.03,3.6377]
[1746789580395,38.9,175.19,175.08,5.7124]
[1746789580693,5.711,175.13,175.03,3.6377]
[1746789580895,38.9,175.19,175.08,5.7123]
[1746789581088,17.18483792,175.19,175.03,3.6377]
[1746789581292,5.7118,175.11,175.03,3.6377]
[1746789581493,5.7118,175.11,175.06,5.713]
[1746789581697,39.18,175.12,175.03,3.6377]
[1746789581997,5.7116,175.11,175.06,5.7129]
[1746789582198,39.06,175.13,175.03,3.6377]
[1746789582691,39.06,175.13,175.06,5.7131]
[1746789582895,39.0,175.12,175.03,3.6377]
[1746789583690,39.0,175.12,175.03,1.8052]
[1746789584091,17.18483792,175.14,175.03,1.8052]
[1746789584291,38.86,175.19,175.04,40.98828408]
[1746789584495,491.8,175.2,175.05,2.12345514]
[1746789584694,5.7105,175.14,175.06,2.12345514]
[1746789584898,38.94,175.14,175.03,1.8052]
[1746789585086,38.94,175.14,175.04,2.12314352]
[1746789585288,38.94,175.14,175.03,1.8052]
[1746789585995,56.12988769,175.14,174.99,1.8246]
[1746789586194,38.94,175.14,175.0,4.02677359]
[1746789586395,38.94,175.14,175.01,2.12537359]
[1746789586595,38.94,175.14,175.02,2.1265597]
[1746789586796,38.94,175.14,175.0,1.9014]
[1746789586797,17.19519576,175.11,175.0,1.9014]
[1746789586996,17.19751107,175.1,175.0,1.9014]
[1746789587298,5.7126,175.08,175.03,5.714]
[1746789587504,38.92,175.08,175.03,5.714]
[1746789587793,17.19899887,175.05,174.81,452.52]
[1746789587998,17.19899887,175.0,174.86,5.5151]
[1746789588200,17.19899887,174.96,174.87,2.12964658]
[1746789588397,17.19899887,174.96,174.86,1.801]
[1746789588603,38.96,174.99,174.87,1.14370675]
[1746789588902,17.19899887,174.97,174.91,5.718]
[1746789589100,17.19899887,174.99,174.86,1.801]
[1746789589293,38.98,174.98,174.86,1.801]
[1746789589492,38.98,174.98,174.84,2.13280528]
[1746789589695,38.98,174.98,174.82,38.96]
[1746789589897,38.92,174.98,174.83,2.12823736]
[1746789590097,38.92,174.98,174.84,2.12823736]
[1746789590396,17.19899887,174.99,174.82,38.96]
[1746789590593,17.19899887,174.99,174.81,1.801]
[1746789590594,38.92,174.98,174.83,2.1277439]
[1746789590798,17.19899887,174.95,174.82,2.13167467]
[1746789591004,5.7171,174.94,174.89,5.7185]
[1746789591205,17.19899887,174.95,174.89,5.7185]
[1746789591405,17.19899887,174.95,174.81,1.801]
[1746789591608,5.7181,174.91,174.86,5.7196]
[1746789591902,44.5981,174.91,174.81,1.801]
[1746789592098,44.5981,174.91,174.8,3.754]
[1746789592099,5.7193,174.88,174.79,2.1335742]
[1746789592403,56.07899887,174.91,174.76,2.1348139]
[1746789592604,56.07899887,174.91,174.76,1.14442664]
[1746789592805,17.19899887,174.87,174.76,1.14442664]
[1746789593105,17.19899887,174.83,174.76,1.14442664]
[1746789593307,491.4,174.82,174.71,5.7245]
[1746789593505,491.4,174.82,174.68,3.8489]
[1746789593805,491.4,174.82,174.69,1.14488522]
[1746789594102,452.66,174.82,174.69,1.14488522]
[1746789594305,38.64,174.81,174.69,1.14488522]
[1746789594509,38.6,174.81,174.69,1.14488522]
[1746789594709,38.6,174.81,174.7,1.7859]
[1746789595209,38.6,174.81,174.69,1.14488522]
[1746789595610,17.19899887,174.79,174.69,1.14488522]
[1746789596005,5.7224,174.78,174.7,5.7246]
[1746789596512,22.92119887,174.79,174.71,5.7244]
[1746789596708,17.19899887,174.79,174.63,3.6998]
[1746789597106,5.7229,174.77,174.63,3.6998]
[1746789597709,17.19899887,174.79,174.62,38.52]
[1746789598012,17.19899887,174.79,174.59,59.16989887]
[1746789598204,38.26,174.78,174.6,2.13381026]
[1746789598404,38.22,174.77,174.6,2.13381026]
[1746789598609,38.22,174.76,174.6,2.13381026]
[1746789598911,38.2,174.75,174.61,62.0]
[1746789599714,452.66,174.82,174.63,17.19899887]
[1746789600013,452.66,174.82,174.8,5.7213]
[1746789600208,490.88,174.82,174.69,38.22]
[1746789600708,17.19899887,174.91,174.71,17.19899887]
[1746789601010,491.28,174.9,174.71,17.19899887]
[1746789601714,5.7194,174.87,174.71,17.19899887]
[1746789601908,491.28,174.9,174.7,3.7439]
[1746789602110,17.19899887,174.87,174.7,3.7439]
[1746789602309,453.14,174.9,174.71,17.19899887]
[1746789602512,453.14,174.9,174.75,17.19899887]
[1746789602712,453.14,174.9,174.75,55.21899887]
[1746789603012,38.02,174.89,174.84,5.7203]
[1746789603215,38.02,174.89,174.75,55.21899887]
[1746789603416,453.14,174.9,174.87,5.7193]
[1746789603614,470.33899887,174.99,174.81,37.96]
[1746789603819,5.7162,174.97,174.83,17.19899887]
[1746789604014,37.96,174.98,174.83,17.19899887]
[1746789604214,37.96,174.98,174.82,5.6161]
[1746789604518,37.96,174.98,174.82,3.6492]
[1746789604816,5.7183,174.91,174.84,5.7201]
[1746789605119,37.94,174.91,174.82,3.6492]
[1746789605721,37.94,174.91,174.79,2.8361]
[1746789605910,5.7188,174.89,174.79,2.8361]
[1746789606220,37.94,174.91,174.79,1.0]
[1746789606723,17.19899887,174.98,174.79,1.0]
[1746789606917,37.8,174.97,174.87,5.7191]
[1746789607417,37.8,174.97,174.8,101.6361]
[1746789607623,37.8,174.97,174.81,3.6473]
[1746789607818,37.68,174.96,174.82,17.19899887]
[1746789608422,37.68,174.96,174.89,5.7184]
[1746789608921,5.7171,174.94,174.88,5.7187]
[1746789609223,470.33899887,174.99,174.81,3.6473]
[1746789609412,37.78,174.98,174.81,3.6473]
[1746789609820,37.82,174.97,174.85,17.19899887]
[1746789610018,5.7164,174.97,174.91,5.7179]
[1746789610521,5.7164,174.97,174.92,5.7176]
[1746789611017,43.5158,174.98,174.85,54.99899887]
[1746789611223,37.8,174.98,174.85,54.99899887]
[1746789611414,37.64,175.04,174.85,54.99899887]
[1746789611614,54.83899887,175.04,174.85,17.19899887]
[1746789611821,54.83899887,175.04,174.85,54.81899887]
[1746789612322,37.64,175.04,174.85,54.81899887]
[1746789612527,5.7149,175.01,174.85,54.81899887]
[1746789612821,37.64,175.04,174.85,54.81899887]
[1746789613017,5.7174,174.93,174.81,3.6473]
[1746789613223,37.56,174.94,174.81,3.6473]
[1746789613427,37.56,174.94,174.79,1.0]
[1746789614027,17.19899887,174.89,174.79,1.0]
[1746789614326,37.9,174.88,174.79,1.0]
[1746789614722,17.19899887,174.96,174.79,1.0]
[1746789615024,38.98318376,174.95,174.79,18.19899887]
[1746789615227,56.18218263,174.95,174.81,5.7213]
[1746789615428,56.18218263,174.95,174.79,1.0]
[1746789615724,55.03899887,174.95,174.79,1.0]
[1746789616117,37.84,174.95,174.79,1.0]
[1746789616315,5.7185,174.9,174.79,1.0]
[1746789616516,17.19899887,174.96,174.79,1.0]
[1746789616727,5.7181,174.91,174.79,1.0]
[1746789616921,17.19899887,174.96,174.79,18.19899887]
[1746789617122,37.64,174.95,174.8,1.8927]
[1746789617324,5.718,174.92,174.8,1.8927]
[1746789617525,5.718,174.92,174.87,5.7193]
[1746789617720,37.64,174.95,174.79,1.0]
[1746789617925,37.64,174.95,174.83,5.7206]
[1746789618130,37.64,174.95,174.79,1.0]
[1746789618628,37.68,174.94,174.79,1.0]
[1746789618828,452.98,174.97,174.81,17.19899887]
[1746789619129,37.66,174.96,174.81,17.19899887]
[1746789619430,5.7168,174.95,174.81,17.19899887]
[1746789619630,37.66,174.96,174.81,17.19899887]
[1746789619930,452.98,174.97,174.85,17.19899887]
[1746789620128,452.98,174.97,174.86,1.7804]
[1746789620725,453.04,175.06,174.89,17.19899887]
[1746789620928,490.56,175.06,174.93,17.19899887]
[1746789621135,490.56,175.06,174.94,5.3661]
[1746789621526,490.56,175.06,174.88,37.64]
[1746789621732,507.75899887,175.06,174.88,37.64]
[1746789621932,490.56,175.06,174.88,37.64]
[1746789622132,453.04,175.06,174.88,37.64]
[1746789622330,453.04,175.06,174.95,17.19899887]
[1746789622528,37.74,175.1,174.93,17.19899887]
[1746789622722,17.19899887,175.06,174.86,39.5404]
[1746789622928,37.76,175.05,174.87,64.11437389]
[1746789623129,37.76,175.05,174.86,39.5404]
[1746789623433,37.76,175.05,174.89,17.19899887]
[1746789623633,37.76,175.05,174.86,39.5404]
[1746789623634,5.7139,175.04,174.93,17.19899887]
[1746789623827,37.76,175.05,174.93,55.03899887]
[1746789624028,37.76,175.05,174.94,1.9115]
[1746789624223,37.84,175.09,174.97,17.19899887]
[1746789624635,5.7136,175.05,174.94,19.11049887]
[1746789624936,37.84,175.09,174.94,19.11049887]
[1746789625831,5.7122,175.1,174.98,17.19899887]
[1746789626136,452.96,175.14,174.98,17.19899887]
[1746789626335,5.7122,175.09,174.98,17.19899887]
[1746789626536,37.6,175.13,174.94,81.11049887]
[1746789627040,37.6,175.13,174.98,17.19899887]
[1746789627638,37.6,175.13,175.03,5.7138]
[1746789627838,5.7123,175.09,174.98,17.19899887]
[1746789628138,37.46,175.12,174.98,17.19899887]
[1746789628334,5.7121,175.1,174.98,17.19899887]
[1746789628540,452.96,175.14,174.98,17.19899887]
[1746789628737,452.96,175.14,175.08,5.7123]
[1746789628936,374.19899887,175.32,175.08,5.7123]
[1746789628937,17.25,175.25,175.08,37.4]
[1746789629140,37.42,175.35,175.21,5.708]
[1746789629332,2.1363147,175.34,175.21,5.708]
[1746789629535,17.16589378,175.28,175.09,5.6879]
[1746789629736,507.32689229,175.27,175.09,5.6879]
[1746789630238,507.32689229,175.27,175.11,5.7114]
[1746789630437,507.32689229,175.27,175.07,17.16689229]
[1746789630733,0.99628735,175.26,175.07,17.16689229]
[1746789630935,17.16689229,175.23,175.03,17.16689229]
[1746789631244,17.16689229,175.23,175.07,5.7128]
[1746789631540,17.16689229,175.23,175.03,17.16689229]
[1746789632230,5.7092,175.19,175.1,5.7116]
[1746789632432,37.18,175.22,175.07,17.16689229]
[1746789632838,37.18,175.22,175.12,5.7109]
[1746789633039,17.16689229,175.23,175.03,17.16689229]
[1746789633241,17.16689229,175.19,174.99,17.16689229]
[1746789633939,37.22,175.21,174.99,17.16689229]
[1746789634238,17.16689229,175.15,174.97,42.9823]
[1746789634438,489.62,175.14,174.99,5.7152]
[1746789634741,489.62,175.14,174.97,5.7823]
[1746789634937,17.16689229,175.11,174.97,1.9049]
[1746789635141,17.16689229,175.11,174.91,5.6697]
[1746789635343,5.7155,174.99,174.93,5.7174]
[1746789635639,37.08,175.01,174.91,3.7254]
[1746789635844,37.04,175.01,174.91,3.7254]
[1746789636039,37.04,175.01,174.97,5.7161]
[1746789636244,37.04,175.01,174.91,3.7254]
[1746789636943,37.04,175.01,174.98,5.7155]
[1746789637142,37.04,175.01,174.91,3.7254]
[1746789638546,37.04,175.01,174.98,5.7155]
[1746789638742,452.5,175.14,174.98,17.16689229]
[1746789638743,36.82,175.08,174.98,17.16689229]
[1746789639043,42.5322,175.09,174.98,17.16689229]
[1746789639644,36.82,175.09,174.98,17.16689229]
[1746789640144,36.82,175.09,175.05,5.7135]
[1746789640642,36.82,175.09,174.98,17.16689229]
[1746789642047,36.82,175.09,175.06,5.7131]
[1746789642247,36.82,175.09,174.99,1.9252]
[1746789642550,36.82,175.09,175.05,5.7132]
[1746789643051,5.7113,175.12,174.99,1.9252]
[1746789643250,36.46,175.11,174.99,1.9252]
[1746789643850,42.1715,175.11,174.99,1.9252]
[1746789644150,36.46,175.11,174.99,1.9252]
[1746789644340,36.46,175.11,174.94,17.16689229]
[1746789644542,5.7126,175.08,174.94,55.43299229]
[1746789644746,36.46,175.11,174.94,55.43299229]
[1746789644948,5.7132,175.06,174.99,5.7154]
[1746789645147,36.34,175.05,174.94,19.07299229]
[1746789645349,36.3,175.05,174.94,19.07299229]
[1746789647855,452.5,175.14,174.94,19.07299229]
[1746789648052,36.24,175.13,174.95,2.12377278]
[1746789648250,36.24,175.13,174.94,19.07299229]
[1746789648454,17.16689229,175.12,174.94,19.07299229]
[1746789648651,17.16689229,175.12,174.99,5.7151]
[1746789649057,17.16689229,175.12,174.91,3.7254]
[1746789649258,17.16689229,175.08,174.91,3.7254]
[1746789649653,5.7135,175.05,174.99,5.7154]
[1746789649855,36.14,175.09,174.92,17.19384922]
[1746789650050,36.14,175.09,174.91,20.91924922]
[1746789650352,452.5,175.14,174.91,20.91924922]
[1746789650552,17.19384922,175.11,174.92,2.12750429]
[1746789650754,5.7134,175.06,174.91,20.91924922]
[1746789650953,36.1,175.05,174.91,20.91924922]
[1746789651166,36.1,175.05,174.92,2.1281874]
[1746789651658,36.1,175.05,174.92,2.12631625]
[1746789651859,41.8135,175.05,174.92,2.12631625]
[1746789652052,36.1,175.05,174.91,5.85171625]
[1746789652257,17.19384922,175.11,174.93,17.19384922]
[1746789652459,36.0,175.07,174.94,38.12631625]
[1746789652659,36.0,175.07,175.04,5.7135]
[1746789653059,5.7119,175.1,175.05,5.7134]
[1746789653259,453.64194358,175.14,174.97,17.19384922]
[1746789653260,35.92,175.09,174.97,17.19384922]
[1746789653661,35.92,175.09,174.94,36.0]
[1746789653855,453.64194358,175.14,174.95,2.1256595]
[1746789654050,35.9,175.13,174.97,17.19384922]
[1746789654255,5.7118,175.11,175.06,5.7131]
[1746789654459,35.9,175.13,175.06,5.7131]
[1746789654661,5.7114,175.12,175.06,5.7131]
[1746789654861,35.9,175.13,174.98,1.9045]
[1746789655062,453.64194358,175.14,174.99,2.12697994]
[1746789655361,453.64194358,175.14,175.07,5.7126]
[1746789655560,35.84,175.13,175.0,35.84]
[1746789655762,5.7115,175.11,175.01,1.9223]
[1746789655960,35.84,175.13,175.01,1.9223]